fUSD/lending_fUSD_20250214
["ID","MTS","AMOUNT","RATE_DAILY","PERIOD"]
[353073053,1739542248093,-500.0,0.00013698,2]
[353073055,1739542248103,-611.99,0.00013698,2]
[353073057,1739542248113,-750.14,0.00013698,2]
[353073059,1739542248124,-500.0,0.00013698,2]
[353073061,1739542248134,-500.0,0.00013698,2]
[353073064,1739542248144,-500.0,0.00013698,2]
[353073065,1739542248154,-1239.27,0.00013698,2]
[353073068,1739542248165,-500.0,0.00013698,2]
[353073070,1739542248175,-500.0,0.00013698,2]
[353073072,1739542248186,-500.0,0.00013698,2]
[353073074,1739542248196,-2817.29,0.00013698,2]
[353073076,1739542248206,-2820.7,0.00013698,2]
[353073078,1739542248216,-500.0,0.00013698,2]
[353073080,1739542248226,-500.0,0.00013698,2]
[353073082,1739542248237,-1115.29,0.00013698,2]
[353073084,1739542248247,-500.0,0.00013698,2]
[353073086,1739542248257,-505.12,0.00013698,2]
[353073088,1739542248267,-500.0,0.00013698,2]
[353073089,1739542248278,-1496.93,0.00013698,2]
[353073092,1739542248294,-3678.67,0.00013698,2]
[353073094,1739542248305,-500.0,0.00013698,2]
[353073096,1739542248316,-500.0,0.00013698,2]
[353073098,1739542248330,-3163.08,0.00013698,2]
[353073100,1739542248341,-3917.68,0.00013698,2]
[353073102,1739542248353,-500.0,0.00013698,2]
[353073104,1739542248364,-1834.87,0.00013698,2]
[353073106,1739542248374,-2080.59,0.00013698,2]
[353073108,1739542248384,-500.0,0.00013698,2]
[353073109,1739542248394,-500.0,0.00013698,2]
[353073111,1739542248404,-500.0,0.00013698,2]
[353073113,1739542248415,-500.0,0.00013698,2]
[353073114,1739542248424,-500.72513287,0.00013698,2]
[353073115,1739542248434,-611.86,0.00013698,2]
[353073117,1739542248444,-500.0,0.00013698,2]
[353073118,1739542248454,-774.43,0.00013698,2]
[353073119,1739542248465,-2273.73,0.00013698,2]
[353073120,1739542248475,-504.24955432,0.00013698,2]
[353073121,1739542248487,-501.83182371,0.00013698,2]
[353073122,1739542248497,-2495.77,0.00013698,2]
[353073123,1739542248508,-500.0,0.00013698,2]
[353073124,1739542248519,-2031.09,0.00013698,2]
[353073125,1739542248530,-500.0,0.00013698,2]
[353073126,1739542248540,-500.0,0.00013698,2]
[353073127,1739542248551,-500.0,0.00013698,2]
[353073128,1739542248562,-1318.54,0.00013698,2]
[353073129,1739542248573,-500.0,0.00013698,2]
[353073130,1739542248584,-500.0,0.00013698,2]
[353073131,1739542248595,-2098.71,0.00013698,2]
[353073132,1739542248606,-504.09728571,0.00013698,2]
[353073133,1739542248616,-505.99571447,0.00013698,2]
[353073134,1739542248627,-500.0,0.00013698,2]
[353073135,1739542248637,-4222.81,0.00013698,2]
[353073136,1739542248647,-500.0,0.00013698,2]
[353073137,1739542248657,-659.84,0.00013698,2]
[353073138,1739542248667,-887.33,0.00013698,2]
[353073140,1739542248676,-500.0,0.00013698,2]
[353073142,1739542248686,-1505.67,0.00013698,2]
[353073144,1739542248696,-500.0,0.00013698,2]
[353073146,1739542248706,-460.78487989,0.00013698,2]
[353073148,1739542248716,-935.33,0.00013698,2]
[353073150,1739542248727,-648.58,0.00013698,2]
[353073152,1739542248738,-500.0,0.00013698,2]
[353073153,1739542248748,-502.21630446,0.00013698,2]
[353073155,1739542248759,-3302.52,0.00013698,2]
[353073157,1739542248768,-500.0,0.00013698,2]
[353073159,1739542248779,-4289.26,0.00013698,2]
[353073161,1739542248789,-500.0,0.00013698,2]
[353073163,1739542248799,-500.0,0.00013698,2]
[353073164,1739542248809,-780.47,0.00013698,2]
[353073165,1739542248819,-500.0,0.00013698,2]
[353073166,1739542248828,-500.0,0.00013698,2]
[353073167,1739542248838,-500.0,0.00013698,2]
[353073168,1739542248848,-369.31474177,0.00013698,2]
[353073169,1739542248859,-502.87274282,0.00013698,2]
[353073170,1739542248869,-500.0,0.00013698,2]
[353073171,1739542248879,-500.0,0.00013698,2]
[353073172,1739542248889,-500.0,0.00013698,2]
[353073173,1739542248898,-500.0,0.00013698,2]
[353073174,1739542248909,-500.0,0.00013698,2]
[353073175,1739542248918,-4096.66,0.00013698,2]
[353073176,1739542248929,-728.19,0.00013698,2]
[353073177,1739542248939,-2003.22,0.00013698,2]
[353073178,1739542248949,-500.0,0.00013698,2]
[353073179,1739542248960,-500.0,0.00013698,2]
[353073180,1739542248970,-330.70351474,0.00013698,2]
[353073181,1739542248981,-2759.37,0.00013698,2]
[353073182,1739542248992,-500.0,0.00013698,2]
[353073183,1739542249002,-507.26871095,0.00013698,2]
[353073184,1739542249012,-500.0,0.00013698,2]
[353073185,1739542249022,-500.0,0.00013698,2]
[353073186,1739542249032,-1911.15,0.00013698,2]
[353073187,1739542249042,-1361.86,0.00013698,2]
[353073188,1739542249052,-3045.56,0.00013698,2]
[353073189,1739542249062,-1132.77,0.00013698,2]
[353073190,1739542249073,-740.19,0.00013698,2]
[353073191,1739542249083,-503.13093878,0.00013698,2]
[353073192,1739542249093,-500.0,0.00013698,2]
[353073193,1739542249103,-500.0,0.00013698,2]
[353073194,1739542249113,-2392.45,0.00013698,2]
[353073195,1739542249123,-1151.08,0.00013698,2]
[353073196,1739542249134,-841.52,0.00013698,2]
[353073197,1739542249144,-501.8519541,0.00013698,2]
[353073198,1739542249154,-500.0,0.00013698,2]
[353073199,1739542249165,-500.0,0.00013698,2]
[353073200,1739542249176,-501.75075994,0.00013698,2]
[353073201,1739542249187,-3198.63,0.00013698,2]
[353073202,1739542249198,-500.0,0.00013698,2]
[353073203,1739542249209,-532.74520771,0.00013698,2]
[353073204,1739542249219,-500.79362731,0.00013698,2]
[353073205,1739542249230,-1600.71,0.00013698,2]
[353073206,1739542249241,-500.0,0.00013698,2]
[353073207,1739542249252,-1073.27,0.00013698,2]
[353073208,1739542249265,-659.33,0.00013698,2]
[353073209,1739542249276,-1815.3,0.00013698,2]
[353073210,1739542249289,-1628.18,0.00013698,2]
[353073211,1739542249301,-500.0,0.00013698,2]
[353073212,1739542249312,-500.0,0.00013698,2]
[353073213,1739542249323,-502.97855017,0.00013698,2]
[353073214,1739542249334,-774.7,0.00013698,2]
[353073215,1739542249345,-502.95714697,0.00013698,2]
[353073216,1739542249356,-849.7,0.00013698,2]
[353073217,1739542249367,-2218.71,0.00013698,2]
[353073218,1739542249378,-2786.9,0.00013698,2]
[353073219,1739542249389,-3153.85,0.00013698,2]
[353073220,1739542249400,-500.0,0.00013698,2]
[353073221,1739542249411,-500.0,0.00013698,2]
[353073222,1739542249422,-3183.93,0.00013698,2]
[353073223,1739542249434,-2022.49,0.00013698,2]
[353073224,1739542249445,-500.0,0.00013698,2]
[353073225,1739542249456,-500.0,0.00013698,2]
[353073226,1739542249466,-1099.84,0.00013698,2]
[353073227,1739542249477,-732.43,0.00013698,2]
[353073228,1739542249489,-500.0,0.00013698,2]
[353073229,1739542249499,-502.55011422,0.00013698,2]
[353073230,1739542249510,-499.91373512,0.00013698,2]
[353073231,1739542249522,-3803.05,0.00013698,2]
[353073232,1739542249533,-636.12,0.00013698,2]
[353073233,1739542249544,-501.05859848,0.00013698,2]
[353073234,1739542249555,-500.0,0.00013698,2]
[353073235,1739542249565,-500.0,0.00013698,2]
[353073236,1739542249574,-1776.01,0.00013698,2]
[353073237,1739542249584,-889.08,0.00013698,2]
[353073238,1739542249594,-500.0,0.00013698,2]
[353073239,1739542249604,-502.69515135,0.00013698,2]
[353073240,1739542249614,-513.24,0.00013698,2]
[353073241,1739542249624,-513.24,0.00013698,2]
[353073242,1739542249635,-513.24,0.00013698,2]
[353073243,1739542249645,-500.0,0.00013698,2]
[353073244,1739542249655,-500.0,0.00013698,2]
[353073245,1739542249665,-1077.75,0.00013698,2]
[353073246,1739542249677,-2103.05,0.00013698,2]
[353073247,1739542249697,-514.53,0.00013698,2]
[353073248,1739542249720,-1511.12,0.00013698,2]
[353073249,1739542249731,-500.0,0.00013698,2]
[353073250,1739542249742,-1365.78,0.00013698,2]
[353073251,1739542249752,-500.0,0.00013698,2]
[353073252,1739542249762,-500.0,0.00013698,2]
[353073253,1739542249772,-500.0,0.00013698,2]
[353073254,1739542249781,-502.76911956,0.00013698,2]
[353073255,1739542249790,-696.65,0.00013698,2]
[353073256,1739542249800,-500.0,0.00013698,2]
[353073257,1739542249810,-1372.51,0.00013698,2]
[353073258,1739542249820,-500.0,0.00013698,2]
[353073259,1739542249830,-500.0,0.00013698,2]
[353073260,1739542249840,-3239.87,0.00013698,2]
[353073261,1739542249850,-500.0,0.00013698,2]
[353073262,1739542249859,-500.0,0.00013698,2]
[353073263,1739542249868,-501.7092323,0.00013698,2]
[353073264,1739542249879,-500.0,0.00013698,2]
[353073265,1739542249888,-500.0,0.00013698,2]
[353073266,1739542249898,-1107.48,0.00013698,2]
[353073267,1739542249908,-500.0,0.00013698,2]
[353073268,1739542249918,-4073.44,0.00013698,2]
[353073269,1739542249928,-508.35842414,0.00013698,2]
[353073270,1739542249937,-629.31,0.00013698,2]
[353073271,1739542249947,-500.0,0.00013698,2]
[353073272,1739542249957,-500.0,0.00013698,2]
[353073273,1739542249967,-675.14,0.00013698,2]
[353073274,1739542249978,-3295.54,0.00013698,2]
[353073275,1739542249989,-500.0,0.00013698,2]
[353073276,1739542249999,-525.69,0.00013698,2]
[353073277,1739542250009,-5861.92,0.00013698,2]
[353073278,1739542250018,-539.58,0.00013698,2]
[353073279,1739542250028,-500.0,0.00013698,2]
[353073280,1739542250038,-3682.11,0.00013698,2]
[353073281,1739542250048,-500.0,0.00013698,2]
[353073282,1739542250059,-981.39,0.00013698,2]
[353073283,1739542250069,-502.9213199,0.00013698,2]
[353073284,1739542250079,-1912.2,0.00013698,2]
[353073285,1739542250089,-500.0,0.00013698,2]
[353073286,1739542250099,-4799.98,0.00013698,2]
[353073287,1739542250109,-500.0,0.00013698,2]
[353073288,1739542250119,-500.0,0.00013698,2]
[353073289,1739542250128,-500.0,0.00013698,2]
[353073290,1739542250139,-500.0,0.00013698,2]
[353073291,1739542250148,-1283.17,0.00013698,2]
[353073292,1739542250158,-1699.32555638,0.00013698,2]
[353073293,1739542250168,-500.0,0.00013698,2]
[353073294,1739542250177,-500.0,0.00013698,2]
[353073295,1739542250188,-1782.17,0.00013698,2]
[353073296,1739542250198,-501.76903694,0.00013698,2]
[353073297,1739542250208,-1864.16,0.00013698,2]
[353073298,1739542250218,-2182.2,0.00013698,2]
[353073299,1739542250229,-254.59556122,0.00013698,2]
[353073300,1739542250239,-4112.33,0.00013698,2]
[353073301,1739542250249,-794.92,0.00013698,2]
[353073302,1739542250259,-500.0,0.00013698,2]
[353073303,1739542250268,-2120.15,0.00013698,2]
[353073304,1739542250284,-500.0,0.00013698,2]
[353073305,1739542250295,-4348.25918525,0.00013698,2]
[353073306,1739542250936,-549.73316218,0.00013698,2]
[353073307,1739542250976,-4943.25765257,0.00013698,2]
[353073308,1739542250986,-500.0,0.00013698,2]
[353073309,1739542250997,-3404.77,0.00013698,2]
[353073310,1739542251007,-3649.56,0.00013698,2]
[353073311,1739542251016,-501.66045618,0.00013698,2]
[353073312,1739542251026,-2244.11,0.00013698,2]
[353073313,1739542251035,-519.22,0.00013698,2]
[353073314,1739542251044,-500.0,0.00013698,2]
[353073315,1739542251054,-3460.12,0.00013698,2]
[353073316,1739542251063,-500.0,0.00013698,2]
[353073317,1739542251072,-500.0,0.00013698,2]
[353073318,1739542251082,-500.0,0.00013698,2]
[353073319,1739542251092,-500.0,0.00013698,2]
[353073320,1739542251102,-2218.89,0.00013698,2]
[353073321,1739542251111,-500.0,0.00013698,2]
[353073322,1739542251121,-1264.35,0.00013698,2]
[353073323,1739542251130,-502.25201244,0.00013698,2]
[353073324,1739542251140,-3016.06,0.00013698,2]
[353073325,1739542251152,-500.0,0.00013698,2]
[353073326,1739542251162,-637.50345832,0.00013698,2]
[353073327,1739542251171,-500.0,0.00013698,2]
[353073328,1739542251180,-1914.06,0.00013698,2]
[353073329,1739542251190,-500.0,0.00013698,2]
[353073330,1739542251199,-4047.35,0.00013698,2]
[353073331,1739542251209,-500.0,0.00013698,2]
[353073332,1739542251219,-500.0,0.00013698,2]
[353073333,1739542251228,-3183.63,0.00013698,2]
[353073334,1739542251238,-1955.75,0.00013698,2]
[353073335,1739542251248,-501.9551972,0.00013698,2]
[353073336,1739542251258,-10285.15,0.00013698,2]
[353073337,1739542251267,-3117.58,0.00013698,2]
[353073338,1739542251277,-2316.26,0.00013698,2]
[353073339,1739542251289,-546.91,0.00013698,2]
[353073340,1739542251298,-2996.58,0.00013698,2]
[353073341,1739542251307,-793.22,0.00013698,2]
[353073342,1739542251316,-500.0,0.00013698,2]
[353073343,1739542251327,-1368.91,0.00013698,2]
[353073344,1739542251335,-609.45,0.00013698,2]
[353073345,1739542251345,-500.0,0.00013698,2]
[353073346,1739542251354,-5048.43,0.00013698,2]
[353073347,1739542251364,-633.02,0.00013698,2]
[353073348,1739542251374,-500.0,0.00013698,2]
[353073349,1739542251383,-3917.19,0.00013698,2]
[353073350,1739542251393,-500.0,0.00013698,2]
[353073351,1739542251402,-3944.7,0.00013698,2]
[353073352,1739542251412,-588.99377253,0.00013698,2]
[353073353,1739542251421,-985.68,0.00013698,2]
[353073354,1739542251431,-500.0,0.00013698,2]
[353073355,1739542251441,-663.18,0.00013698,2]
[353073356,1739542251451,-2586.03,0.00013698,2]
[353073357,1739542251460,-3905.26,0.00013698,2]
[353073358,1739542251469,-1179.69,0.00013698,2]
[353073359,1739542251479,-3248.59,0.00013698,2]
[353073360,1739542251489,-940.49,0.00013698,2]
[353073361,1739542251499,-4512.26,0.00013698,2]
[353073362,1739542251507,-502.54416823,0.00013698,2]
[353073363,1739542251517,-4915.33,0.00013698,2]
[353073364,1739542251527,-346.72924889,0.00013698,2]
[353073365,1739542251536,-501.96122938,0.00013698,2]
[353073366,1739542251546,-500.82662227,0.00013698,2]
[353073367,1739542251555,-915.8,0.00013698,2]
[353073368,1739542251565,-1219.06,0.00013698,2]
[353073369,1739542251575,-500.0,0.00013698,2]
[353073370,1739542251584,-500.0,0.00013698,2]
[353073371,1739542251594,-2887.51,0.00013698,2]
[353073372,1739542251604,-3255.93,0.00013698,2]
[353073373,1739542251613,-469.65903345,0.00013698,2]
[353073374,1739542251623,-5329.27,0.00013698,2]
[353073375,1739542251632,-3387.52,0.00013698,2]
[353073376,1739542251642,-500.0,0.00013698,2]
[353073377,1739542251651,-500.0,0.00013698,2]
[353073378,1739542251660,-636.18,0.00013698,2]
[353073379,1739542251670,-500.0,0.00013698,2]
[353073380,1739542251679,-1407.56,0.00013698,2]
[353073381,1739542251689,-1174.42,0.00013698,2]
[353073382,1739542251698,-500.0,0.00013698,2]
[353073383,1739542251707,-500.0,0.00013698,2]
[353073384,1739542251716,-2382.04,0.00013698,2]
[353073385,1739542251725,-339.35524232,0.00013698,2]
[353073386,1739542251735,-500.0,0.00013698,2]
[353073387,1739542251745,-9647.9,0.00013698,2]
[353073388,1739542251755,-3750.1,0.00013698,2]
[353073389,1739542251763,-2868.31,0.00013698,2]
[353073390,1739542251772,-500.0,0.00013698,2]
[353073391,1739542251782,-832.89,0.00013698,2]
[353073392,1739542251791,-501.86281763,0.00013698,2]
[353073393,1739542251800,-691.62,0.00013698,2]
[353073394,1739542251810,-685.71,0.00013698,2]
[353073395,1739542251819,-1862.6,0.00013698,2]
[353073396,1739542251829,-500.0,0.00013698,2]
[353073397,1739542251838,-2976.24,0.00013698,2]
[353073398,1739542251847,-500.0,0.00013698,2]
[353073399,1739542251856,-565.84,0.00013698,2]
[353073400,1739542251865,-500.0,0.00013698,2]
[353073401,1739542251875,-500.0,0.00013698,2]
[353073402,1739542251883,-500.0,0.00013698,2]
[353073403,1739542251892,-500.0,0.00013698,2]
[353073404,1739542251901,-504.26,0.00013698,2]
[353073405,1739542251910,-4572.92,0.00013698,2]
[353073406,1739542251919,-500.0,0.00013698,2]
[353073407,1739542251928,-633.64,0.00013698,2]
[353073408,1739542251937,-500.0,0.00013698,2]
[353073409,1739542251946,-500.0,0.00013698,2]
[353073410,1739542251955,-500.0,0.00013698,2]
[353073411,1739542251965,-1210.6,0.00013698,2]
[353073412,1739542251974,-3311.0,0.00013698,2]
[353073413,1739542251983,-1387.72,0.00013698,2]
[353073414,1739542251992,-500.0,0.00013698,2]
[353073415,1739542252002,-2334.66,0.00013698,2]
[353073416,1739542252011,-500.0,0.00013698,2]
[353073417,1739542252020,-1295.59,0.00013698,2]
[353073418,1739542252030,-6081.05,0.00013698,2]
[353073419,1739542252039,-500.0,0.00013698,2]
[353073420,1739542252048,-500.0,0.00013698,2]
[353073421,1739542252058,-500.0,0.00013698,2]
[353073422,1739542252067,-604.46,0.00013698,2]
[353073423,1739542252077,-500.98875057,0.00013698,2]
[353073424,1739542252086,-1374.79,0.00013698,2]
[353073425,1739542252096,-813.08,0.00013698,2]
[353073426,1739542252105,-500.0,0.00013698,2]
[353073427,1739542252114,-3348.76,0.00013698,2]
[353073428,1739542252123,-505.67260562,0.00013698,2]
[353073429,1739542252133,-503.07752413,0.00013698,2]
[353073430,1739542252142,-500.0,0.00013698,2]
[353073431,1739542252153,-500.0,0.00013698,2]
[353073432,1739542252162,-3168.13,0.00013698,2]
[353073433,1739542252171,-500.80932662,0.00013698,2]
[353073434,1739542252180,-3837.73,0.00013698,2]
[353073435,1739542252189,-500.0,0.00013698,2]
[353073436,1739542252199,-935.67,0.00013698,2]
[353073437,1739542252208,-292.60095225,0.00013698,2]
[353073438,1739542252217,-2357.98,0.00013698,2]
[353073439,1739542252226,-500.0,0.00013698,2]
[353073440,1739542252236,-507.67188075,0.00013698,2]
[353073441,1739542252245,-500.0,0.00013698,2]
[353073442,1739542252255,-2568.7,0.00013698,2]
[353073443,1739542252264,-1100.31,0.00013698,2]
[353073444,1739542252273,-621.6,0.00013698,2]
[353073445,1739542252284,-4710.6,0.00013698,2]
[353073446,1739542252296,-1100.31,0.00013698,2]
[353073447,1739542252305,-1100.31,0.00013698,2]
[353073448,1739542252314,-500.0,0.00013698,2]
[353073449,1739542252335,-702.75,0.00013698,2]
[353073450,1739542252344,-500.0,0.00013698,2]
[353073451,1739542252353,-500.0,0.00013698,2]
[353073452,1739542252361,-500.0,0.00013698,2]
[353073453,1739542252373,-1478.77,0.00013698,2]
[353073454,1739542252382,-3850.2,0.00013698,2]
[353073455,1739542252391,-500.0,0.00013698,2]
[353073456,1739542252401,-5027.25,0.00013698,2]
[353073457,1739542252411,-926.77,0.00013698,2]
[353073458,1739542252420,-2096.68,0.00013698,2]
[353073459,1739542252429,-575.36,0.00013698,2]
[353073460,1739542252439,-2604.26,0.00013698,2]
[353073461,1739542252448,-500.0,0.00013698,2]
[353073462,1739542252458,-3402.83,0.00013698,2]
[353073463,1739542252467,-1651.3,0.00013698,2]
[353073464,1739542252478,-3354.51,0.00013698,2]
[353073465,1739542252487,-1669.19,0.00013698,2]
[353073466,1739542252497,-2200.19,0.00013698,2]
[353073467,1739542252505,-396.703,0.00013698,2]
[353073468,1739542252515,-1237.2,0.00013698,2]
[353073469,1739542252525,-4672.06,0.00013698,2]
[353073470,1739542252535,-500.0,0.00013698,2]
[353073471,1739542252544,-500.0,0.00013698,2]
[353073472,1739542252553,-500.0,0.00013698,2]
[353073473,1739542252563,-1827.16,0.00013698,2]
[353073474,1739542252573,-500.0,0.00013698,2]
[353073475,1739542252582,-500.0,0.00013698,2]
[353073476,1739542252592,-2189.01,0.00013698,2]
[353073477,1739542252602,-646.23,0.00013698,2]
[353073478,1739542252611,-4283.91,0.00013698,2]
[353073479,1739542252621,-500.0,0.00013698,2]
[353073480,1739542252630,-501.26504177,0.00013698,2]
[353073481,1739542252640,-2624.95,0.00013698,2]
[353073482,1739542252650,-500.0,0.00013698,2]
[353073483,1739542252660,-400.58154903,0.00013698,2]
[353073484,1739542252670,-210.34,0.00013699,2]
[353073485,1739542252679,-200.0,0.00013699,2]
[353073486,1739542252689,-416.39,0.00013699,2]
[353073487,1739542252699,-500.0,0.00013699,2]
[353073488,1739542252708,-327.45,0.00013699,2]
[353073489,1739542252718,-10111.9,0.00013699,2]
[353073490,1739542252727,-188.74706127,0.00013699,2]
[353073491,1739542252736,-1100.0,0.000137,5]
[353073492,1739542252747,-4612.51,0.000137,2]
[353073493,1739542252757,-420.0,0.0001371,2]
[353073494,1739542252766,-150.0,0.00013717,2]
[353073495,1739542252776,-150.0,0.00013733,2]
[353073496,1739542252786,-2025.0,0.00013733,2]
[353073497,1739542252795,-1273.0,0.00013733,2]
[353073498,1739542252805,-150.0,0.00013733,2]
[353073499,1739542252814,-1786.0,0.00013733,2]
[353073500,1739542252823,-2954.0,0.00013733,2]
[353073501,1739542252832,-371.659,0.00013733,2]
[353073502,1739542252841,-908.0,0.00013733,2]
[353073503,1739542252851,-1265.0,0.00013733,2]
[353073504,1739542252860,-538.193,0.00013733,2]
[353073505,1739542252870,-4027.0,0.00013733,2]
[353073506,1739542252879,-3915.0,0.00013733,2]
[353073507,1739542252888,-154.414,0.00013733,2]
[353073508,1739542252897,-1109.0,0.00013733,2]
[353073509,1739542252906,-3192.02309926,0.00013739,2]
[353073510,1739542252915,-158.89111123,0.00013762,2]
[353073511,1739542252924,-255.0,0.00013769,2]
[353073512,1739542252933,-1927.90058555,0.00013779,5]
[353073513,1739542252943,-662.93,0.00013779,2]
[353073514,1739542252952,-662.93,0.00013779,2]
[353073515,1739542252961,-662.93,0.00013779,2]
[353073516,1739542252971,-662.93,0.00013779,2]
[353073517,1739542252979,-662.93,0.00013779,2]
[353073518,1739542252989,-662.93,0.00013779,2]
[353073519,1739542253000,-663.13480752,0.00013779,2]
[353073520,1739542253009,-513.24,0.00013779,2]
[353073521,1739542253018,-513.24,0.00013779,2]
[353073522,1739542253028,-1100.31,0.00013779,2]
[353073523,1739542253037,-1100.31,0.00013779,2]
[353073524,1739542253047,-500.0,0.0001378,2]
[353073525,1739542253056,-500.0,0.0001378,2]
[353073526,1739542253066,-508.47853082,0.0001378,2]
[353073527,1739542253077,-500.0,0.0001378,2]
[353073528,1739542253086,-1004.2,0.0001378,2]
[353073529,1739542253096,-508.16,0.0001378,2]
[353073530,1739542253105,-1458.874617,0.0001378,2]
[353073531,1739542253115,-500.0,0.0001378,2]
[353073532,1739542253125,-500.0,0.0001378,2]
[353073533,1739542253134,-783.25,0.0001378,2]
[353073534,1739542253144,-714.75,0.0001378,2]
[353073535,1739542253153,-500.0,0.0001378,2]
[353073536,1739542253162,-2085.034845,0.0001378,2]
[353073537,1739542253171,-500.0,0.0001378,2]
[353073538,1739542253181,-500.0,0.0001378,2]
[353073539,1739542253191,-500.0,0.0001378,2]
[353073540,1739542253201,-500.0,0.0001378,2]
[353073541,1739542253211,-500.0,0.0001378,2]
[353073542,1739542253220,-510.02757089,0.0001378,2]
[353073543,1739542253230,-999.82,0.0001378,2]
[353073544,1739542253239,-531.74,0.0001378,2]
[353073545,1739542253249,-530.13,0.0001378,2]
[353073546,1739542253259,-500.0,0.0001378,2]
[353073547,1739542253268,-500.0,0.0001378,2]
[353073548,1739542253278,-500.0,0.0001378,2]
[353073549,1739542253290,-500.0,0.0001378,2]
[353073550,1739542253300,-678.6,0.0001378,2]
[353073551,1739542253309,-752.82,0.0001378,2]
[353073552,1739542253318,-922.08,0.0001378,2]
[353073553,1739542253329,-500.0,0.0001378,2]
[353073554,1739542253339,-500.0,0.0001378,2]
[353073555,1739542253348,-500.0,0.0001378,2]
[353073556,1739542253358,-500.0,0.0001378,2]
[353073557,1739542253367,-500.0,0.0001378,2]
[353073558,1739542253378,-500.0,0.0001378,2]
[353073559,1739542253388,-500.0,0.0001378,2]
[353073560,1739542253399,-500.0,0.0001378,2]
[353073561,1739542253409,-963.24,0.0001378,2]
[353073562,1739542253420,-521.9,0.0001378,2]
[353073563,1739542253431,-505.99037501,0.0001378,2]
[353073564,1739542253440,-500.0,0.0001378,2]
[353073565,1739542253451,-500.0,0.0001378,2]
[353073566,1739542253460,-567.98,0.0001378,2]
[353073567,1739542253471,-500.0,0.0001378,2]
[353073568,1739542253482,-500.0,0.0001378,2]
[353073569,1739542253491,-500.0,0.0001378,2]
[353073570,1739542253501,-502.34821083,0.0001378,2]
[353073571,1739542253510,-621.08,0.0001378,2]
[353073572,1739542253519,-639.46548279,0.0001378,2]
[353073573,1739542253528,-500.0,0.0001378,2]
[353073574,1739542253540,-663.86,0.0001378,2]
[353073575,1739542253552,-500.0,0.0001378,2]
[353073576,1739542253563,-500.0,0.0001378,2]
[353073577,1739542253574,-500.0,0.0001378,2]
[353073578,1739542253584,-875.17,0.0001378,2]
[353073579,1739542253595,-500.0,0.0001378,2]
[353073580,1739542253605,-500.0,0.0001378,2]
[353073581,1739542253614,-500.0,0.0001378,2]
[353073582,1739542253623,-533.9289372,0.0001378,2]
[353073583,1739542253633,-558.4,0.0001378,2]
[353073584,1739542253642,-500.0,0.0001378,2]
[353073585,1739542253652,-500.0,0.0001378,2]
[353073586,1739542253661,-500.0,0.0001378,2]
[353073587,1739542253908,-500.0,0.0001378,2]
[353073588,1739542253919,-501.29654235,0.0001378,2]
[353073589,1739542253929,-500.0,0.0001378,2]
[353073590,1739542253939,-500.0,0.0001378,2]
[353073591,1739542253948,-500.0,0.0001378,2]
[353073592,1739542253957,-500.0,0.0001378,2]
[353073593,1739542253967,-500.0,0.0001378,2]
[353073594,1739542253976,-500.0,0.0001378,2]
[353073595,1739542253987,-500.0,0.0001378,2]